{"text_format":"1","workbook":"xlsx","n_sheets":5,"sheets":["накладная","прайс","Инвентаризация","Товарный чек","История заказов"],"not_rendered":{"charts":0,"images":0,"macros":1,"external_links":0,"defined_names":2,"comments":0,"pivot_tables":0},"unopened":[],"bounds":{"document_bytes":16777216,"sheet_cells":100000,"rows_first":2000,"rows_last":500,"rows_between":2000,"halvings":0,"cell_chars":16384,"cell_head_chars":4096},"cells_cut":0,"cells_raw":0,"read":"whole","date_system":"1900"}

{"sheet":"накладная","index":0,"n_rows":12,"n_cols":10,"rows_kept":12,"cut":false,"hidden":false,"merged":[[1,1,1,6],[5,9,6,9]]}
[]
[null,"Прайс Автоматически подсчитывает сумму Вашего заказа. Это делается в несколько шагов.\nШаг 1.: Для начала работы с прайсом требуется \"Включить содержимое\" (для этого необходимо нажать соответствующую кнопку \"Включить содержимое\", расположенную сверху документа и подсвечиваемой желтым, если такого нет - значит все нормально)\nШаг 2.: Переходим во вкладку \"Прайс\"\nШаг 3.: Проставив нужное количество, напротив нужной позиции, нажмите кнопку ИТОГО (расположена в самом верху прайса сочетание клавиш ctrl+b так же позволит Вам запускать команду - Автоподчет, при этом раскладка клавиатуры должна быть ENG)\nШаг 4.: Переходите на эту страницу для удобного просмотра полного списка заказа с конечной суммой. Здесь же Вы можете оставить свои данные для быстрого формирования накладной по доставке.\nP.S.                                                                                                                                                                        Приятных Вам покупок!!!"]
[]
[null,"Кому :"]
[null,"Адрес:"]
[null,"тел.:"]
[]
["№","Артикул","Наименование","цвет","Кол-во","Цена","Сумма",null,null,{"$f":"SUM(I8:I9)","v":0}]
[1,100001,"дополнительная панель к товару 3","черный",22,180,3960,null,null,{"$f":"SUM(I8:I9)","v":0}]
[2,100002,"дополнительная панель к товару 3","белый",11,180,1980]
[]
[null,null,null,null,null,"Итого",5940]

{"sheet":"прайс","index":1,"n_rows":27,"n_cols":6,"rows_kept":27,"cut":false,"hidden":false,"merged":[]}
[]
["Бланк заказа товаров"]
["2015-08-05"]
["Артикул","Наименование","цвет","Цена (руб)","Кол-во","Сумма 1"]
["-----","Каталог"]
["-----","ТОВАРЫ - Пластиковый"]
["-----","Марка Производителя"]
[101801,"Товар 1","черный",450]
[101802,"Товар 1","белый",450]
[101101,"Товар 2","черный",360]
[101102,"Товар 2","белый",360]
[102801,"Товар 3","черный",470]
[102802,"Товар 3","белый",470]
[102819,"Товар 3","голубой",470]
[102815,"Товар 3","красный",470]
[102813,"Товар 3","розовый",470]
[100001,"дополнительная панель к товару 3","черный",180,22,3960]
[100002,"дополнительная панель к товару 3","белый",180,11,1980]
[100019,"дополнительная панель к товару 3","голубой",180]
[100015,"дополнительная панель к товару 3","красный",180]
[100013,"дополнительная панель к товару 3","розовый",180]
[102101,"Товар 4","черный",380]
[102102,"Товар 4","белый",380]
[103801,"Товар 5","черный",430]
[103802,"Товар 5","белый",430]
[103819,"Товар 5","голубой",430]
[103813,"Товар 5","розовый",430]

{"sheet":"Инвентаризация","index":2,"n_rows":26,"n_cols":16,"rows_kept":26,"cut":false,"hidden":false,"merged":[[25,3,25,4]]}
["Артикул","Наименование","цвет","Поступило на склад",null,"Осталось на складе",null,"Себестоимость",null,"Оптовая цена",null,"Розничная цена"]
[null,"Чехлы под 2D сублимацию"]
[null,"Чехлы под 2D сублимацию - ПЛАСТИКОВЫЕ"]
[null,"APPLE"]
[101801,"Товар 1","черный",100,null,1,null,322.62,null,450,null,1800,null,{"$f":"F5*H5","v":322.62},{"$f":"F5*J5","v":450},{"$f":"F5*L5","v":1800}]
[101802,"Товар 1","белый",100,null,0,null,322.62,null,450,null,1800,null,{"$f":"F6*H6","v":0},0,{"$f":"F6*L6","v":0}]
[101101,"Товар 2","черный",100,null,4,null,247.2,null,360,null,1500,null,988.8,1440,6000]
[101102,"Товар 2","белый",100,null,0,null,247.2,null,360,null,1500,null,0,0,0]
[102801,"Товар 3","черный",100,null,7,null,341.37,null,470,null,1600,null,2389.59,3290,11200]
[102802,"Товар 3","белый",100,null,6,null,341.37,null,470,null,1600,null,2048.2200000000003,2820,9600]
[102819,"Товар 3","голубой",50,null,4,null,341.37,null,470,null,1600,null,1365.48,1880,6400]
[102815,"Товар 3","красный",50,null,3,null,341.37,null,470,null,1600,null,1024.1100000000001,1410,4800]
[102813,"Товар 3","розовый",50,null,4,null,341.37,null,470,null,1600,null,1365.48,1880,6400]
[100001,"дополнительная панель к товару 3","черный",10,null,2,null,81.2,null,180,null,450,null,162.4,360,900]
[100002,"дополнительная панель к товару 3","белый",10,null,2,null,81.2,null,180,null,450,null,162.4,360,900]
[100019,"дополнительная панель к товару 3","голубой",10,null,2,null,81.2,null,180,null,450,null,162.4,360,900]
[100015,"дополнительная панель к товару 3","красный",10,null,2,null,81.2,null,180,null,450,null,162.4,360,900]
[100013,"дополнительная панель к товару 3","розовый",10,null,2,null,81.2,null,180,null,450,null,162.4,360,900]
[102101,"Товар 4","черный",100,null,13,null,247.2,null,380,null,1500,null,3213.6,4940,19500]
[102102,"Товар 4","белый",100,null,15,null,247.2,null,380,null,1500,null,3708,5700,22500]
[103801,"Товар 5","черный",100,null,24,null,318.79000000000002,null,430,null,1450,null,7650.9600000000009,10320,34800]
[103802,"Товар 5","белый",100,null,21,null,318.79000000000002,null,430,null,1450,null,6694.59,9030,30450]
[103819,"Товар 5","голубой",50,null,4,null,318.79000000000002,null,430,null,1450,null,1275.1600000000001,1720,5800]
[103813,"Товар 5","розовый",50,null,4,null,318.79000000000002,null,430,null,1450,null,1275.1600000000001,1720,5800]
[]
[null,null,null,"Итого:",null,{"$f":"SUM(F5:F25)","v":120},null,{"$f":"SUM(N5:N24)","v":34133.770000000004},null,{"$f":"SUM(O5:O25)","v":48400},null,{"$f":"SUM(P5:P24)","v":169550}]

{"sheet":"Товарный чек","index":3,"n_rows":20,"n_cols":7,"rows_kept":20,"cut":false,"hidden":false,"merged":[[14,0,14,6],[16,0,16,6],[18,0,18,2],[19,0,19,2]]}
[]
[]
[null,null,"(наименование организации, ИНН)"]
[]
[null,null,"ТОВАРНЫЙ ЧЕК №372 от 04.08.2015"]
[]
["№","Артикул","Наименование",null,"Кол-во","Цена","Сумма"]
[1,{"$f":"накладная!B9","v":100001},{"$f":"накладная!C9","v":"дополнительная панель к товару 3"},{"$f":"накладная!D9","v":"черный"},{"$f":"накладная!E9","v":22},{"$f":"накладная!F9","v":180},{"$f":"E8*F8","v":3960}]
[2,null,null,null,null,null,{"$f":"E9*F9","v":0}]
[3,null,null,null,null,null,0]
[4,null,null,null,null,null,0]
[5,null,null,null,null,null,0]
[null,null,null,null,null,"Итого:",{"$f":"SUM(G8:G12)","v":3960}]
[]
["Всего отпушено на сумму: ____________________________________________________________________________________________"]
[]
["____________________________________________________________________________________________________ руб. ______ коп."]
[]
["Продавец: __________________     ____________________________"]
["                                                         (подпись)                                                                     (Ф.И.О.)"]

{"sheet":"История заказов","index":4,"n_rows":3,"n_cols":9,"rows_kept":3,"cut":false,"hidden":false,"merged":[[1,0,2,0],[1,1,2,1],[1,2,1,8]]}
[]
["№ заказа","Дата","Информация по заказу"]
[null,null,"№","Артикул","Наименование","цвет","кол-во","цена","ИТОГО"]